[Event "Titled Tuesday Blitz March 29 Early 2022"]
[White "Namitbir Singh Walia"]
[Black "Suarez Uriel, Adrian"]
[WhiteFideId "35071068"]
[BlackFideId "22230874"]
[WhiteElo "2336"]
[BlackElo "2524"]
[Result "0-1"]
[Round "09"]
[TimeControl "180+1"]
[Date "2022.03.30"]
[WhiteClock "0:00:06"]
[BlackClock "0:00:41"]

1. d4 {[%clk 0:02:51]}  Nf6 {[%clk 0:02:59]} 2. c4 {[%clk 0:02:50]}  b6 {[%clk 0:03:00]} 3. Nf3 {[%clk 0:02:50]}  Bb7 {[%clk 0:02:58]} 4. Nc3 {[%clk 0:02:47]}  g6 {[%clk 0:02:58]} 5. e3 {[%clk 0:02:43]}  Bg7 {[%clk 0:02:58]} 6. Bd3 {[%clk 0:02:44]}  O-O {[%clk 0:02:57]} 7. b3 {[%clk 0:02:44]}  c5 {[%clk 0:02:57]} 8. Bb2 {[%clk 0:02:43]}  d6 {[%clk 0:02:57]} 9. h4 {[%clk 0:02:41]}  Nbd7 {[%clk 0:02:54]} 10. Qc2 {[%clk 0:02:34]}  e5 {[%clk 0:02:53]} 11. d5 {[%clk 0:02:26]}  a6 {[%clk 0:02:50]} 12. h5 {[%clk 0:02:15]}  Qe7 {[%clk 0:02:49]} 13. O-O-O {[%clk 0:02:09]}  Rae8 {[%clk 0:02:44]} 14. hxg6 {[%clk 0:01:57]}  fxg6 {[%clk 0:02:43]} 15. Ng5 {[%clk 0:01:57]}  Ng4 {[%clk 0:02:38]} 16. Nge4 {[%clk 0:01:04]}  Ndf6 {[%clk 0:02:34]} 17. Qe2 {[%clk 0:00:59]}  Bc8 {[%clk 0:02:34]} 18. f3 {[%clk 0:00:54]}  Nh6 {[%clk 0:02:28]} 19. g4 {[%clk 0:00:53]}  Nxe4 {[%clk 0:02:27]} 20. Nxe4 {[%clk 0:00:52]}  Nf7 {[%clk 0:02:25]} 21. Qh2 {[%clk 0:00:51]}  h6 {[%clk 0:02:23]} 22. Rdg1 {[%clk 0:00:49]}  Ng5 {[%clk 0:02:22]} 23. Nxg5 {[%clk 0:00:43]}  Qxg5 {[%clk 0:02:23]} 24. Qe2 {[%clk 0:00:43]}  Bd7 {[%clk 0:02:17]} 25. Be4 {[%clk 0:00:42]}  b5 {[%clk 0:02:16]} 26. Kc2 {[%clk 0:00:35]}  bxc4 {[%clk 0:02:16]} 27. bxc4 {[%clk 0:00:36]}  Rb8 {[%clk 0:02:15]} 28. Bc3 {[%clk 0:00:36]}  Ba4+ {[%clk 0:02:13]} 29. Kd2 {[%clk 0:00:36]}  Qd8 {[%clk 0:01:37]} 30. Rb1 {[%clk 0:00:29]}  Rxb1 {[%clk 0:01:30]} 31. Rxb1 {[%clk 0:00:30]}  g5 {[%clk 0:01:08]} 32. Bc2 {[%clk 0:00:25]}  Bxc2 {[%clk 0:01:07]} 33. Kxc2 {[%clk 0:00:25]}  e4 {[%clk 0:01:04]} 34. fxe4 {[%clk 0:00:24]}  Bxc3 {[%clk 0:01:03]} 35. Kxc3 {[%clk 0:00:25]}  Qa5+ {[%clk 0:01:03]} 36. Kd3 {[%clk 0:00:12]}  Qa3+ {[%clk 0:01:03]} 37. Rb3 {[%clk 0:00:13]}  Qc1 {[%clk 0:01:03]} 38. Qd2 {[%clk 0:00:13]}  Qf1+ {[%clk 0:01:02]} 39. Qe2 {[%clk 0:00:13]}  Qc1 {[%clk 0:01:01]} 40. Rc3 {[%clk 0:00:11]}  Qb1+ {[%clk 0:01:00]} 41. Qc2 {[%clk 0:00:12]}  Qf1+ {[%clk 0:00:56]} 42. Qe2 {[%clk 0:00:12]}  Qa1 {[%clk 0:00:56]} 43. Rb3 {[%clk 0:00:11]}  Rf1 {[%clk 0:00:55]} 44. Rb2 {[%clk 0:00:11]}  Rd1+ {[%clk 0:00:54]} 45. Kc3 {[%clk 0:00:10]}  Rc1+ {[%clk 0:00:46]} 46. Kb3 {[%clk 0:00:10]}  Re1 {[%clk 0:00:43]} 47. Qf3 {[%clk 0:00:10]}  Qc1 {[%clk 0:00:42]} 48. Re2 {[%clk 0:00:06]}  Qd1+ {[%clk 0:00:41]} 0-1


[Site "https://www.chess.com"]

[Event "Titled Tuesday Blitz March 29 Early 2022"]
[White "Obolentseva, Alexandra"]
[Black "Shvedova, Alexandra"]
[WhiteFideId "24153648"]
[BlackFideId "54154782"]
[WhiteElo "2567"]
[BlackElo "2441"]
[Result "0-1"]
[Round "09"]
[TimeControl "180+1"]
[Date "2022.03.30"]
[WhiteClock "0:00:15"]
[BlackClock "0:00:04"]

1. d4 {[%clk 0:03:00]}  Nf6 {[%clk 0:03:00]} 2. c4 {[%clk 0:03:00]}  e6 {[%clk 0:03:00]} 3. Nf3 {[%clk 0:02:59]}  d5 {[%clk 0:03:00]} 4. g3 {[%clk 0:02:58]}  dxc4 {[%clk 0:02:57]} 5. Bg2 {[%clk 0:02:58]}  Nc6 {[%clk 0:02:57]} 6. O-O {[%clk 0:02:57]}  Rb8 {[%clk 0:02:57]} 7. a4 {[%clk 0:02:47]}  b6 {[%clk 0:02:57]} 8. Bf4 {[%clk 0:02:39]}  Be7 {[%clk 0:02:43]} 9. Qc1 {[%clk 0:02:33]}  Ba6 {[%clk 0:02:25]} 10. Rd1 {[%clk 0:02:32]}  Na5 {[%clk 0:02:18]} 11. Nbd2 {[%clk 0:02:14]}  Nd5 {[%clk 0:02:06]} 12. Ne5 {[%clk 0:01:59]}  Nxf4 {[%clk 0:01:58]} 13. gxf4 {[%clk 0:02:00]}  O-O {[%clk 0:01:50]} 14. e3 {[%clk 0:01:48]}  f6 {[%clk 0:01:45]} 15. Nexc4 {[%clk 0:01:46]}  Bxc4 {[%clk 0:01:43]} 16. Nxc4 {[%clk 0:01:47]}  Nb3 {[%clk 0:01:42]} 17. Qc2 {[%clk 0:01:44]}  Nxa1 {[%clk 0:01:42]} 18. Rxa1 {[%clk 0:01:45]}  c5 {[%clk 0:01:34]} 19. Rd1 {[%clk 0:01:43]}  Qc7 {[%clk 0:01:11]} 20. d5 {[%clk 0:01:37]}  exd5 {[%clk 0:01:07]} 21. Rxd5 {[%clk 0:01:20]}  Rbd8 {[%clk 0:01:05]} 22. Rh5 {[%clk 0:01:15]}  g6 {[%clk 0:01:02]} 23. Rh3 {[%clk 0:01:15]}  Qd7 {[%clk 0:00:57]} 24. Bf1 {[%clk 0:01:15]}  Qe6 {[%clk 0:00:45]} 25. Rg3 {[%clk 0:01:12]}  f5 {[%clk 0:00:36]} 26. Ne5 {[%clk 0:01:10]}  Kh8 {[%clk 0:00:29]} 27. Rh3 {[%clk 0:00:46]}  Bd6 {[%clk 0:00:27]} 28. Nf3 {[%clk 0:00:42]}  Be7 {[%clk 0:00:25]} 29. Bc4 {[%clk 0:00:41]}  Qd6 {[%clk 0:00:22]} 30. Kg2 {[%clk 0:00:38]}  Bf6 {[%clk 0:00:21]} 31. Be2 {[%clk 0:00:30]}  Qd5 {[%clk 0:00:18]} 32. Rg3 {[%clk 0:00:28]}  Qe4 {[%clk 0:00:18]} 33. Qb3 {[%clk 0:00:27]}  Rd2 {[%clk 0:00:14]} 34. Bf1 {[%clk 0:00:20]}  Rxb2 {[%clk 0:00:13]} 35. Qa3 {[%clk 0:00:19]}  Rd8 {[%clk 0:00:11]} 36. a5 {[%clk 0:00:17]}  Rdd2 {[%clk 0:00:10]} 37. Kg1 {[%clk 0:00:10]}  Rxf2 {[%clk 0:00:10]} 38. Ne1 {[%clk 0:00:09]}  Rxf1+ {[%clk 0:00:07]} 39. Kxf1 {[%clk 0:00:10]}  Qc4+ {[%clk 0:00:07]} 40. Qd3 {[%clk 0:00:09]}  Qxd3+ {[%clk 0:00:07]} 41. Nxd3 {[%clk 0:00:10]}  Rc2 {[%clk 0:00:06]} 42. axb6 {[%clk 0:00:10]}  axb6 {[%clk 0:00:07]} 43. Rg2 {[%clk 0:00:10]}  Rxg2 {[%clk 0:00:07]} 44. Kxg2 {[%clk 0:00:11]}  c4 {[%clk 0:00:08]} 45. Nb4 {[%clk 0:00:12]}  Be7 {[%clk 0:00:07]} 46. Nd5 {[%clk 0:00:11]}  Bc5 {[%clk 0:00:08]} 47. Kf3 {[%clk 0:00:11]}  Kg7 {[%clk 0:00:08]} 48. e4 {[%clk 0:00:12]}  fxe4+ {[%clk 0:00:08]} 49. Kxe4 {[%clk 0:00:13]}  Kf7 {[%clk 0:00:07]} 50. h4 {[%clk 0:00:13]}  Ke6 {[%clk 0:00:07]} 51. Nc7+ {[%clk 0:00:13]}  Kd7 {[%clk 0:00:07]} 52. Nb5 {[%clk 0:00:13]}  Kc6 {[%clk 0:00:06]} 53. Na7+ {[%clk 0:00:13]}  Kb7 {[%clk 0:00:05]} 54. Nb5 {[%clk 0:00:14]}  Kc6 {[%clk 0:00:05]} 55. Na7+ {[%clk 0:00:14]}  Kd7 {[%clk 0:00:05]} 56. Nb5 {[%clk 0:00:15]}  Ke6 {[%clk 0:00:05]} 57. Nc7+ {[%clk 0:00:15]}  Kf6 {[%clk 0:00:06]} 58. Nd5+ {[%clk 0:00:15]}  Kf7 {[%clk 0:00:06]} 59. Nc3 {[%clk 0:00:15]}  Be7 {[%clk 0:00:04]} 60. Nd5 {[%clk 0:00:13]}  Bxh4 {[%clk 0:00:04]} 61. Nxb6 {[%clk 0:00:13]}  c3 {[%clk 0:00:05]} 62. Kd3 {[%clk 0:00:14]}  Bf6 {[%clk 0:00:05]} 63. Nd5 {[%clk 0:00:14]}  Ke6 {[%clk 0:00:05]} 64. Ne3 {[%clk 0:00:14]}  h5 {[%clk 0:00:04]} 65. Ke4 {[%clk 0:00:14]}  h4 {[%clk 0:00:04]} 66. Kf3 {[%clk 0:00:12]}  Kf7 {[%clk 0:00:04]} 67. Kg4 {[%clk 0:00:12]}  Ke7 {[%clk 0:00:04]} 68. f5 {[%clk 0:00:13]}  g5 {[%clk 0:00:03]} 69. Nd5+ {[%clk 0:00:12]}  Kf7 {[%clk 0:00:03]} 70. Ne3 {[%clk 0:00:13]}  Kg7 {[%clk 0:00:03]} 71. Nc2 {[%clk 0:00:13]}  Be5 {[%clk 0:00:03]} 72. Ne3 {[%clk 0:00:13]}  Kf6 {[%clk 0:00:03]} 73. Nc2 {[%clk 0:00:13]}  Bf4 {[%clk 0:00:02]} 74. Nb4 {[%clk 0:00:12]}  Ke5 {[%clk 0:00:03]} 75. Nd3+ {[%clk 0:00:13]}  Kd4 {[%clk 0:00:01]} 76. Ne1 {[%clk 0:00:13]}  Bd6 {[%clk 0:00:01]} 77. Nc2+ {[%clk 0:00:12]}  Kd3 {[%clk 0:00:02]} 78. Ne1+ {[%clk 0:00:12]}  Kd2 {[%clk 0:00:01]} 79. Nf3+ {[%clk 0:00:13]}  Ke3 {[%clk 0:00:02]} 80. Ne1 {[%clk 0:00:13]}  Ke2 {[%clk 0:00:02]} 81. Nc2 {[%clk 0:00:13]}  Kd3 {[%clk 0:00:03]} 82. Ne1+ {[%clk 0:00:14]}  Kd2 {[%clk 0:00:03]} 83. Nf3+ {[%clk 0:00:14]}  Ke3 {[%clk 0:00:04]} 84. Ne1 {[%clk 0:00:14]}  Ke4 {[%clk 0:00:04]} 85. f6 {[%clk 0:00:12]}  Ke5 {[%clk 0:00:04]} 86. Kxg5 {[%clk 0:00:12]}  h3 {[%clk 0:00:04]} 87. f7 {[%clk 0:00:13]}  Ke6 {[%clk 0:00:04]} 88. Kg6 {[%clk 0:00:11]}  h2 {[%clk 0:00:03]} 89. Nf3 {[%clk 0:00:11]}  h1=Q {[%clk 0:00:03]} 90. Ng5+ {[%clk 0:00:12]}  Kd7 {[%clk 0:00:03]} 91. Kg7 {[%clk 0:00:12]}  c2 {[%clk 0:00:03]} 92. Ne4 {[%clk 0:00:11]}  Be7 {[%clk 0:00:04]} 93. Nf6+ {[%clk 0:00:12]}  Bxf6+ {[%clk 0:00:03]} 94. Kxf6 {[%clk 0:00:13]}  Qf1+ {[%clk 0:00:03]} 95. Kg7 {[%clk 0:00:13]}  Qxf7+ {[%clk 0:00:04]} 96. Kxf7 {[%clk 0:00:14]}  c1=Q {[%clk 0:00:04]} 97. Kf6 {[%clk 0:00:15]}  Qf4+ {[%clk 0:00:04]} 0-1


[Site "https://www.chess.com"]

[Event "Titled Tuesday Blitz March 29 Early 2022"]
[White "Piliczewski, Bogusz"]
[Black "Smietanska, Wiktoria"]
[WhiteFideId "1104144"]
[BlackFideId "21869359"]
[WhiteElo "1896"]
[BlackElo "1893"]
[Result "0-1"]
[Round "09"]
[TimeControl "180+1"]
[Date "2022.03.30"]
[WhiteClock "0:00:04"]
[BlackClock "0:00:05"]

1. d4 {[%clk 0:02:56]}  Nf6 {[%clk 0:02:58]} 2. Nf3 {[%clk 0:02:56]}  g6 {[%clk 0:02:55]} 3. Bf4 {[%clk 0:02:56]}  Bg7 {[%clk 0:02:54]} 4. e3 {[%clk 0:02:56]}  O-O {[%clk 0:02:54]} 5. Be2 {[%clk 0:02:57]}  d6 {[%clk 0:02:54]} 6. h3 {[%clk 0:02:57]}  Nbd7 {[%clk 0:02:47]} 7. O-O {[%clk 0:02:57]}  Re8 {[%clk 0:02:44]} 8. c4 {[%clk 0:02:57]}  c5 {[%clk 0:02:39]} 9. Nc3 {[%clk 0:02:53]}  a6 {[%clk 0:02:36]} 10. a3 {[%clk 0:02:42]}  Rb8 {[%clk 0:02:31]} 11. b4 {[%clk 0:02:41]}  cxd4 {[%clk 0:02:29]} 12. exd4 {[%clk 0:02:40]}  Nh5 {[%clk 0:02:14]} 13. Be3 {[%clk 0:02:33]}  e5 {[%clk 0:02:11]} 14. Nd5 {[%clk 0:01:51]}  Ndf6 {[%clk 0:02:03]} 15. dxe5 {[%clk 0:01:28]}  dxe5 {[%clk 0:01:59]} 16. Bg5 {[%clk 0:01:22]}  h6 {[%clk 0:01:46]} 17. Bxf6 {[%clk 0:01:13]}  Nxf6 {[%clk 0:01:38]} 18. Nxf6+ {[%clk 0:01:06]}  Bxf6 {[%clk 0:01:39]} 19. Qxd8 {[%clk 0:00:59]}  Rxd8 {[%clk 0:01:36]} 20. Rfd1 {[%clk 0:00:57]}  Re8 {[%clk 0:01:31]} 21. c5 {[%clk 0:00:54]}  Be6 {[%clk 0:01:24]} 22. Rac1 {[%clk 0:00:49]}  Rbd8 {[%clk 0:01:20]} 23. Rxd8 {[%clk 0:00:47]}  Rxd8 {[%clk 0:01:21]} 24. Rd1 {[%clk 0:00:46]}  Rxd1+ {[%clk 0:01:15]} 25. Bxd1 {[%clk 0:00:46]}  e4 {[%clk 0:01:14]} 26. Nd2 {[%clk 0:00:46]}  Bd5 {[%clk 0:01:08]} 27. Bc2 {[%clk 0:00:46]}  Bb2 {[%clk 0:01:02]} 28. Nxe4 {[%clk 0:00:42]}  f5 {[%clk 0:00:35]} 29. Nd6 {[%clk 0:00:31]}  Bxa3 {[%clk 0:00:33]} 30. b5 {[%clk 0:00:19]}  Bxc5 {[%clk 0:00:29]} 31. bxa6 {[%clk 0:00:19]}  Bxd6 {[%clk 0:00:24]} 32. a7 {[%clk 0:00:18]}  b5 {[%clk 0:00:25]} 33. Bb3 {[%clk 0:00:18]}  Bxb3 {[%clk 0:00:16]} 34. a8=Q+ {[%clk 0:00:17]}  Bf8 {[%clk 0:00:15]} 35. Qb7 {[%clk 0:00:13]}  Bc4 {[%clk 0:00:12]} 36. Qc6 {[%clk 0:00:12]}  Kf7 {[%clk 0:00:08]} 37. Qd7+ {[%clk 0:00:11]}  Be7 {[%clk 0:00:08]} 38. f4 {[%clk 0:00:10]}  b4 {[%clk 0:00:08]} 39. Qb7 {[%clk 0:00:07]}  b3 {[%clk 0:00:06]} 40. Kf2 {[%clk 0:00:05]}  Be6 {[%clk 0:00:05]} 41. Ke3 {[%clk 0:00:04]}  Kf6 {[%clk 0:00:05]} 0-1


[Site "https://www.chess.com"]

[Event "Titled Tuesday Blitz March 29 Early 2022"]
[White "Polster, Christian"]
[Black "Iskusnyh, Sergei"]
[WhiteFideId "12965081"]
[BlackFideId "4120027"]
[WhiteElo "2338"]
[BlackElo "2492"]
[Result "1-0"]
[Round "09"]
[TimeControl "180+1"]
[Date "2022.03.30"]
[WhiteClock "0:00:03"]
[BlackClock "0:00:04"]

1. d4 {[%clk 0:03:00]}  d5 {[%clk 0:02:58]} 2. Bf4 {[%clk 0:02:58]}  Nf6 {[%clk 0:02:54]} 3. e3 {[%clk 0:02:54]}  c5 {[%clk 0:02:53]} 4. Nc3 {[%clk 0:02:51]}  cxd4 {[%clk 0:02:51]} 5. exd4 {[%clk 0:02:50]}  Bg4 {[%clk 0:02:49]} 6. Be2 {[%clk 0:02:43]}  Bxe2 {[%clk 0:02:47]} 7. Qxe2 {[%clk 0:02:44]}  Nc6 {[%clk 0:02:44]} 8. Nb5 {[%clk 0:02:36]}  Rc8 {[%clk 0:02:39]} 9. Nd6+ {[%clk 0:02:35]}  Kd7 {[%clk 0:02:36]} 10. Nxc8 {[%clk 0:02:31]}  Qxc8 {[%clk 0:02:36]} 11. Nf3 {[%clk 0:02:26]}  e6 {[%clk 0:02:34]} 12. O-O {[%clk 0:02:25]}  Be7 {[%clk 0:02:33]} 13. c4 {[%clk 0:02:21]}  Rd8 {[%clk 0:02:24]} 14. Ne5+ {[%clk 0:02:17]}  Ke8 {[%clk 0:02:22]} 15. Nxc6 {[%clk 0:02:15]}  Qxc6 {[%clk 0:02:20]} 16. Rac1 {[%clk 0:02:15]}  dxc4 {[%clk 0:02:14]} 17. Rxc4 {[%clk 0:02:02]}  Qa6 {[%clk 0:02:03]} 18. b3 {[%clk 0:01:55]}  Nd5 {[%clk 0:02:00]} 19. Be5 {[%clk 0:01:44]}  Kf8 {[%clk 0:01:55]} 20. Rfc1 {[%clk 0:01:33]}  b6 {[%clk 0:01:52]} 21. a4 {[%clk 0:01:15]}  Kg8 {[%clk 0:01:49]} 22. Qg4 {[%clk 0:01:11]}  Bf8 {[%clk 0:01:48]} 23. h4 {[%clk 0:01:04]}  Qb7 {[%clk 0:01:42]} 24. h5 {[%clk 0:00:59]}  h6 {[%clk 0:01:41]} 25. Qf3 {[%clk 0:00:52]}  Qd7 {[%clk 0:01:38]} 26. Rc7 {[%clk 0:00:35]}  Nxc7 {[%clk 0:01:36]} 27. Rxc7 {[%clk 0:00:36]}  Qe8 {[%clk 0:01:36]} 28. Qb7 {[%clk 0:00:35]}  f6 {[%clk 0:01:32]} 29. Bg3 {[%clk 0:00:26]}  Rxd4 {[%clk 0:01:31]} 30. Qf3 {[%clk 0:00:19]}  e5 {[%clk 0:01:27]} 31. Rxa7 {[%clk 0:00:18]}  e4 {[%clk 0:01:18]} 32. Qf5 {[%clk 0:00:16]}  e3 {[%clk 0:01:08]} 33. fxe3 {[%clk 0:00:12]}  Qxe3+ {[%clk 0:01:07]} 34. Bf2 {[%clk 0:00:12]}  Rd1+ {[%clk 0:01:06]} 35. Kh2 {[%clk 0:00:12]}  Bd6+ {[%clk 0:01:03]} 36. g3 {[%clk 0:00:12]}  Rd2 {[%clk 0:00:58]} 37. Ra8+ {[%clk 0:00:07]}  Bf8 {[%clk 0:00:56]} 38. Kg2 {[%clk 0:00:06]}  Qe7 {[%clk 0:00:37]} 39. Qf3 {[%clk 0:00:05]}  Qd7 {[%clk 0:00:32]} 40. Rb8 {[%clk 0:00:05]}  Rd3 {[%clk 0:00:26]} 41. Qe4 {[%clk 0:00:05]}  f5 {[%clk 0:00:24]} 42. Qb7 {[%clk 0:00:04]}  Qxb7+ {[%clk 0:00:22]} 43. Rxb7 {[%clk 0:00:05]}  Rxb3 {[%clk 0:00:21]} 44. Rxb6 {[%clk 0:00:06]}  Ra3 {[%clk 0:00:20]} 45. Rb8 {[%clk 0:00:04]}  Ra2 {[%clk 0:00:17]} 46. Kf3 {[%clk 0:00:04]}  Kf7 {[%clk 0:00:17]} 47. Ra8 {[%clk 0:00:03]}  Ra3+ {[%clk 0:00:16]} 48. Kg2 {[%clk 0:00:04]}  Bd6 {[%clk 0:00:15]} 49. a5 {[%clk 0:00:03]}  Ra2 {[%clk 0:00:14]} 50. Kf3 {[%clk 0:00:03]}  Ke6 {[%clk 0:00:14]} 51. a6 {[%clk 0:00:03]}  Ra3+ {[%clk 0:00:12]} 52. Kg2 {[%clk 0:00:03]}  Ra2 {[%clk 0:00:12]} 53. Kf3 {[%clk 0:00:03]}  Ra3+ {[%clk 0:00:12]} 54. Kg2 {[%clk 0:00:03]}  f4 {[%clk 0:00:11]} 55. gxf4 {[%clk 0:00:03]}  Ra2 {[%clk 0:00:10]} 56. a7 {[%clk 0:00:02]}  Bc5 {[%clk 0:00:09]} 57. Re8+ {[%clk 0:00:02]}  Kf7 {[%clk 0:00:07]} 58. a8=Q {[%clk 0:00:03]}  Rxf2+ {[%clk 0:00:07]} 59. Kg3 {[%clk 0:00:03]}  Rc2 {[%clk 0:00:05]} 60. Qd8 {[%clk 0:00:02]}  Rc3+ {[%clk 0:00:04]} 61. Kg4 {[%clk 0:00:03]} 1-0


[Site "https://www.chess.com"]

[Event "Titled Tuesday Blitz March 29 Early 2022"]
[White "Przybylski, Wojciech"]
[Black "Mika, Tomasz"]
[WhiteFideId "1117599"]
[BlackFideId "1132970"]
[WhiteElo "2133"]
[BlackElo "2116"]
[Result "0-1"]
[Round "09"]
[TimeControl "180+1"]
[Date "2022.03.30"]
[WhiteClock "0:00:01"]
[BlackClock "0:00:04"]

1. e4 {[%clk 0:02:59]}  c6 {[%clk 0:03:00]} 2. d4 {[%clk 0:02:56]}  d5 {[%clk 0:03:01]} 3. exd5 {[%clk 0:02:55]}  cxd5 {[%clk 0:03:01]} 4. Bd3 {[%clk 0:02:54]}  Nc6 {[%clk 0:03:00]} 5. c3 {[%clk 0:02:54]}  Nf6 {[%clk 0:02:55]} 6. h3 {[%clk 0:02:54]}  e5 {[%clk 0:02:54]} 7. dxe5 {[%clk 0:02:53]}  Nxe5 {[%clk 0:02:55]} 8. Nf3 {[%clk 0:02:53]}  Nxd3+ {[%clk 0:02:48]} 9. Qxd3 {[%clk 0:02:52]}  Be7 {[%clk 0:02:49]} 10. O-O {[%clk 0:02:51]}  O-O {[%clk 0:02:48]} 11. Be3 {[%clk 0:02:50]}  Qc7 {[%clk 0:02:18]} 12. Nbd2 {[%clk 0:02:50]}  Bd7 {[%clk 0:02:10]} 13. Rfd1 {[%clk 0:02:48]}  Rfd8 {[%clk 0:02:04]} 14. Nb3 {[%clk 0:02:48]}  a6 {[%clk 0:01:54]} 15. Nbd4 {[%clk 0:02:46]}  Ne4 {[%clk 0:01:51]} 16. Rac1 {[%clk 0:02:40]}  Bf6 {[%clk 0:01:49]} 17. c4 {[%clk 0:02:38]}  Nc5 {[%clk 0:01:41]} 18. Qa3 {[%clk 0:02:35]}  Qd6 {[%clk 0:01:10]} 19. Nb3 {[%clk 0:02:29]}  Ne4 {[%clk 0:00:51]} 20. Nc5 {[%clk 0:02:00]}  Bc6 {[%clk 0:00:36]} 21. b4 {[%clk 0:01:47]}  Nxc5 {[%clk 0:00:34]} 22. Bxc5 {[%clk 0:01:46]}  Qe6 {[%clk 0:00:29]} 23. Bb6 {[%clk 0:01:36]}  Rd7 {[%clk 0:00:24]} 24. Re1 {[%clk 0:01:31]}  Qf5 {[%clk 0:00:21]} 25. Qe3 {[%clk 0:01:21]}  h6 {[%clk 0:00:17]} 26. Nd4 {[%clk 0:01:16]}  Bxd4 {[%clk 0:00:15]} 27. Bxd4 {[%clk 0:01:16]}  dxc4 {[%clk 0:00:14]} 28. Rxc4 {[%clk 0:01:15]}  Qd5 {[%clk 0:00:14]} 29. Qg3 {[%clk 0:01:11]}  f6 {[%clk 0:00:11]} 30. Rxc6 {[%clk 0:00:48]}  Qxc6 {[%clk 0:00:09]} 31. Be3 {[%clk 0:00:48]}  Kh7 {[%clk 0:00:07]} 32. Rc1 {[%clk 0:00:46]}  Qe6 {[%clk 0:00:06]} 33. Qf3 {[%clk 0:00:43]}  Rad8 {[%clk 0:00:05]} 34. Kh2 {[%clk 0:00:42]}  Qd6+ {[%clk 0:00:05]} 35. Bf4 {[%clk 0:00:41]}  Qd5 {[%clk 0:00:05]} 36. Qe2 {[%clk 0:00:33]}  Qd3 {[%clk 0:00:05]} 37. Qe6 {[%clk 0:00:30]}  Qd5 {[%clk 0:00:04]} 38. Qg4 {[%clk 0:00:29]}  Qe4 {[%clk 0:00:03]} 39. f3 {[%clk 0:00:27]}  Qg6 {[%clk 0:00:03]} 40. Qe6 {[%clk 0:00:24]}  Rd3 {[%clk 0:00:02]} 41. Qc4 {[%clk 0:00:19]}  R3d4 {[%clk 0:00:03]} 42. Qc7 {[%clk 0:00:18]}  R8d5 {[%clk 0:00:01]} 43. Qxb7 {[%clk 0:00:14]}  Rf5 {[%clk 0:00:01]} 44. Be3 {[%clk 0:00:10]}  Rd3 {[%clk 0:00:02]} 45. Qe4 {[%clk 0:00:09]}  Re5 {[%clk 0:00:02]} 46. Qxg6+ {[%clk 0:00:09]}  Kxg6 {[%clk 0:00:03]} 47. Bf4 {[%clk 0:00:10]}  Re2 {[%clk 0:00:03]} 48. a4 {[%clk 0:00:08]}  Rb3 {[%clk 0:00:03]} 49. Bd6 {[%clk 0:00:08]}  Rbb2 {[%clk 0:00:03]} 50. Rg1 {[%clk 0:00:07]}  Ra2 {[%clk 0:00:03]} 51. a5 {[%clk 0:00:07]}  h5 {[%clk 0:00:03]} 52. h4 {[%clk 0:00:07]}  Kf5 {[%clk 0:00:04]} 53. Kg3 {[%clk 0:00:07]}  Ke6 {[%clk 0:00:04]} 54. Bc5 {[%clk 0:00:07]}  Kd5 {[%clk 0:00:04]} 55. Kh3 {[%clk 0:00:08]}  Ke6 {[%clk 0:00:05]} 56. Kg3 {[%clk 0:00:08]}  g5 {[%clk 0:00:05]} 57. hxg5 {[%clk 0:00:08]}  fxg5 {[%clk 0:00:05]} 58. Kh3 {[%clk 0:00:09]}  Kf5 {[%clk 0:00:06]} 59. Kg3 {[%clk 0:00:09]}  h4+ {[%clk 0:00:06]} 60. Kh3 {[%clk 0:00:09]}  Rac2 {[%clk 0:00:06]} 61. Bd6 {[%clk 0:00:09]}  Red2 {[%clk 0:00:06]} 62. Bc5 {[%clk 0:00:09]}  Rd3 {[%clk 0:00:06]} 63. Kh2 {[%clk 0:00:08]}  g4 {[%clk 0:00:06]} 64. fxg4+ {[%clk 0:00:07]}  Kxg4 {[%clk 0:00:06]} 65. Re1 {[%clk 0:00:07]}  Rh3+ {[%clk 0:00:06]} 66. Kg1 {[%clk 0:00:07]}  Rg3 {[%clk 0:00:06]} 67. Bf2 {[%clk 0:00:07]}  Rd3 {[%clk 0:00:06]} 68. Re4+ {[%clk 0:00:07]}  Kf5 {[%clk 0:00:06]} 69. Rxh4 {[%clk 0:00:07]}  Rd1+ {[%clk 0:00:06]} 70. Kh2 {[%clk 0:00:07]}  Rxf2 {[%clk 0:00:06]} 71. Rh8 {[%clk 0:00:06]}  Rfd2 {[%clk 0:00:06]} 72. Rh6 {[%clk 0:00:06]}  Rd6 {[%clk 0:00:05]} 73. Rh8 {[%clk 0:00:06]}  Kf4 {[%clk 0:00:05]} 74. Rf8+ {[%clk 0:00:05]}  Ke4 {[%clk 0:00:06]} 75. Re8+ {[%clk 0:00:04]}  Kd4 {[%clk 0:00:06]} 76. Rc8 {[%clk 0:00:04]}  Rd3 {[%clk 0:00:05]} 77. g3 {[%clk 0:00:03]}  Rg6 {[%clk 0:00:05]} 78. Rd8+ {[%clk 0:00:03]}  Kc4 {[%clk 0:00:05]} 79. Rb8 {[%clk 0:00:02]}  Rdxg3 {[%clk 0:00:04]} 80. Kh1 {[%clk 0:00:01]}  Rh3# {[%clk 0:00:04]} 0-1


[Site "https://www.chess.com"]

[Event "Titled Tuesday Blitz March 29 Early 2022"]
[White "Rustemov, Alexander"]
[Black "Perez Gormaz, Matias"]
[WhiteFideId "4119002"]
[BlackFideId "3406342"]
[WhiteElo "2749"]
[BlackElo "2327"]
[Result "1-0"]
[Round "09"]
[TimeControl "180+1"]
[Date "2022.03.29"]
[WhiteClock "0:00:13"]
[BlackClock "0:00:01"]

1. d4 {[%clk 0:03:00]}  d5 {[%clk 0:03:00]} 2. c4 {[%clk 0:03:00]}  e6 {[%clk 0:03:01]} 3. Nc3 {[%clk 0:03:00]}  a6 {[%clk 0:03:02]} 4. cxd5 {[%clk 0:03:00]}  exd5 {[%clk 0:03:03]} 5. Nf3 {[%clk 0:03:00]}  c6 {[%clk 0:03:03]} 6. Bf4 {[%clk 0:02:54]}  Bd6 {[%clk 0:03:03]} 7. Bxd6 {[%clk 0:02:53]}  Qxd6 {[%clk 0:03:04]} 8. e3 {[%clk 0:02:52]}  Ne7 {[%clk 0:03:05]} 9. h3 {[%clk 0:02:36]}  O-O {[%clk 0:03:03]} 10. Be2 {[%clk 0:02:36]}  Bf5 {[%clk 0:03:03]} 11. O-O {[%clk 0:02:35]}  Nd7 {[%clk 0:03:03]} 12. Rc1 {[%clk 0:02:33]}  Rfe8 {[%clk 0:03:02]} 13. Na4 {[%clk 0:02:32]}  Qc7 {[%clk 0:02:46]} 14. b4 {[%clk 0:02:21]}  Nc8 {[%clk 0:02:45]} 15. Nc5 {[%clk 0:02:18]}  Nd6 {[%clk 0:02:41]} 16. Qb3 {[%clk 0:02:12]}  Nb6 {[%clk 0:02:38]} 17. Nd2 {[%clk 0:02:08]}  Qe7 {[%clk 0:02:27]} 18. a4 {[%clk 0:02:06]}  Qg5 {[%clk 0:02:27]} 19. Kh2 {[%clk 0:01:55]}  g6 {[%clk 0:01:09]} 20. Rce1 {[%clk 0:01:54]}  h5 {[%clk 0:01:08]} 21. Bd3 {[%clk 0:01:51]}  Bxd3 {[%clk 0:01:07]} 22. Qxd3 {[%clk 0:01:51]}  Re7 {[%clk 0:01:06]} 23. Nf3 {[%clk 0:01:41]}  Qf6 {[%clk 0:01:04]} 24. Ne5 {[%clk 0:01:41]}  Rae8 {[%clk 0:01:04]} 25. a5 {[%clk 0:01:35]}  Nbc4 {[%clk 0:00:53]} 26. f4 {[%clk 0:01:35]}  Nf5 {[%clk 0:00:39]} 27. e4 {[%clk 0:01:29]}  Nfd6 {[%clk 0:00:35]} 28. exd5 {[%clk 0:01:15]}  cxd5 {[%clk 0:00:34]} 29. Re2 {[%clk 0:01:13]}  Qf5 {[%clk 0:00:32]} 30. Qf3 {[%clk 0:01:02]}  Ne4 {[%clk 0:00:08]} 31. Rfe1 {[%clk 0:00:55]}  Ncd6 {[%clk 0:00:07]} 32. g4 {[%clk 0:00:53]}  hxg4 {[%clk 0:00:08]} 33. hxg4 {[%clk 0:00:53]}  Qf6 {[%clk 0:00:09]} 34. Kg2 {[%clk 0:00:50]}  g5 {[%clk 0:00:08]} 35. f5 {[%clk 0:00:44]}  Rxe5 {[%clk 0:00:09]} 36. dxe5 {[%clk 0:00:44]}  Qxe5 {[%clk 0:00:10]} 37. Qh3 {[%clk 0:00:35]}  Qg7 {[%clk 0:00:07]} 38. Rh1 {[%clk 0:00:31]}  Rc8 {[%clk 0:00:06]} 39. Qh6 {[%clk 0:00:24]}  Qxh6 {[%clk 0:00:05]} 40. Rxh6 {[%clk 0:00:23]}  Kg7 {[%clk 0:00:06]} 41. Rh3 {[%clk 0:00:21]}  Nxc5 {[%clk 0:00:06]} 42. bxc5 {[%clk 0:00:22]}  Ne4 {[%clk 0:00:06]} 43. Rb3 {[%clk 0:00:19]}  Rxc5 {[%clk 0:00:04]} 44. Rxb7 {[%clk 0:00:20]}  Rxa5 {[%clk 0:00:04]} 45. Rc2 {[%clk 0:00:19]}  Nd6 {[%clk 0:00:02]} 46. Rd7 {[%clk 0:00:18]}  Nb5 {[%clk 0:00:01]} 47. Rc6 {[%clk 0:00:14]}  Ra4 {[%clk 0:00:02]} 48. Rg6+ {[%clk 0:00:14]}  Kf8 {[%clk 0:00:02]} 49. Rxg5 {[%clk 0:00:14]}  Nd4 {[%clk 0:00:01]} 50. Rxd5 {[%clk 0:00:13]} 1-0


[Site "https://www.chess.com"]